bitfinex/quotes_BTCUSD_20240613
["timestamp","ask_amount","ask_price","bid_price","bid_amount"]
[1718238310644,0.00286,68182.0,68181.0,0.7547651]
[1718238313646,0.00286,68182.0,68181.0,1.17775213]
[1718238313899,0.00286,68182.0,68181.0,1.95775213]
[1718238314107,0.00286,68182.0,68181.0,2.17310027]
[1718238314456,0.00086,68182.0,68181.0,2.08527925]
[1718238314634,0.00086,68182.0,68181.0,2.07727925]
[1718238315043,0.00086,68182.0,68181.0,2.20105553]
[1718238315593,0.00086,68182.0,68181.0,2.09127925]
[1718238316003,0.00086,68182.0,68181.0,2.20605553]
[1718238316435,0.00086,68182.0,68181.0,2.09627925]
[1718238317432,0.00086,68182.0,68181.0,2.18399202]
[1718238317904,0.00086,68182.0,68181.0,2.14627925]
[1718238318061,0.00086,68182.0,68181.0,2.42365946]
[1718238318232,0.00086,68182.0,68181.0,2.31388318]
[1718238318437,0.00086,68182.0,68181.0,2.42349259]
[1718238318866,0.00086,68182.0,68181.0,2.42348915]
[1718238319271,0.00086,68182.0,68181.0,2.31387974]
[1718238319888,0.00086,68182.0,68181.0,2.30887974]
[1718238320273,0.00086,68182.0,68181.0,2.32287974]
[1718238320938,0.00086,68182.0,68181.0,2.30527925]
[1718238321141,0.00086,68182.0,68181.0,2.31408094]
[1718238321360,0.00086,68182.0,68181.0,2.30527925]
[1718238321595,0.00086,68182.0,68181.0,2.31407894]
[1718238321800,0.00086,68182.0,68181.0,2.30007894]
[1718238322206,0.00086,68182.0,68181.0,2.31407894]
[1718238322418,0.00858,68183.0,68182.0,0.63]
[1718238322646,0.00858,68183.0,68182.0,1.84977033]
[1718238322858,0.00858,68183.0,68182.0,1.70310433]
[1718238323259,0.00858,68183.0,68182.0,1.84977033]
[1718238323467,0.00858,68183.0,68182.0,1.87277033]
[1718238323674,0.00858,68183.0,68182.0,1.88677033]
[1718238324104,0.00858,68183.0,68182.0,1.74010433]
[1718238324307,0.00858,68183.0,68182.0,1.71710433]
[1718238324518,0.00858,68183.0,68182.0,1.9337006]
[1718238324781,0.00858,68183.0,68182.0,1.9195569]
[1718238324993,0.00858,68183.0,68182.0,1.80130433]
[1718238325233,0.00858,68183.0,68182.0,1.68730433]
[1718238325418,0.00858,68183.0,68182.0,1.48626895]
[1718238325648,0.00858,68183.0,68182.0,1.38944523]
[1718238325872,0.00858,68183.0,68182.0,1.30977721]
[1718238326281,0.00858,68183.0,68182.0,1.39577721]
[1718238326704,0.00858,68183.0,68182.0,1.32377721]
[1718238326904,0.00858,68183.0,68182.0,1.42377721]
[1718238327354,0.00858,68183.0,68182.0,1.34137677]
[1718238327578,0.00858,68183.0,68182.0,1.44137677]
[1718238327792,0.00858,68183.0,68182.0,1.34137677]
[1718238328229,0.00858,68183.0,68182.0,1.44137677]
[1718238328777,0.00858,68183.0,68182.0,1.34137677]
[1718238329531,0.00858,68183.0,68182.0,1.32377721]
[1718238329773,0.00858,68183.0,68182.0,1.34157701]
[1718238330243,0.00858,68183.0,68182.0,1.44157701]
[1718238332110,0.00858,68183.0,68182.0,1.44153799]
[1718238335131,0.00858,68183.0,68182.0,1.42753799]
[1718238335556,0.00858,68183.0,68182.0,1.50720257]
[1718238336086,0.00858,68183.0,68182.0,1.40720257]
[1718238336773,0.00858,68183.0,68182.0,1.40200207]
[1718238336977,0.00858,68183.0,68182.0,1.41600207]
[1718238337190,0.00858,68183.0,68182.0,1.50720257]
[1718238337894,0.00858,68183.0,68182.0,1.63471244]
[1718238338063,0.00858,68183.0,68182.0,1.61691264]
[1718238339291,0.00858,68183.0,68182.0,1.55124806]
[1718238339497,0.00858,68183.0,68182.0,1.51444856]
[1718238339713,0.00858,68183.0,68182.0,1.41444856]
[1718238339933,0.00858,68183.0,68182.0,1.5461153]
[1718238340136,0.00858,68183.0,68182.0,1.4461153]
[1718238340382,0.00858,68183.0,68182.0,1.51966808]
[1718238340610,0.00858,68183.0,68182.0,1.54766808]
[1718238341529,0.00858,68183.0,68182.0,1.64766808]
[1718238341878,0.00858,68183.0,68182.0,1.63366808]
[1718238342082,0.00858,68183.0,68182.0,1.64766808]
[1718238342283,0.00858,68183.0,68182.0,1.5601153]
[1718238342859,0.00858,68183.0,68182.0,1.64155627]
[1718238343074,0.00858,68183.0,68182.0,1.70555627]
[1718238343283,0.00858,68183.0,68182.0,1.71955627]
[1718238343496,0.00858,68183.0,68182.0,1.70555627]
[1718238343721,0.00858,68183.0,68182.0,1.76421127]
[1718238344346,0.00858,68183.0,68182.0,1.6547703]
[1718238345843,0.00858,68183.0,68182.0,1.6687703]
[1718238347152,0.00858,68183.0,68182.0,1.66876087]
[1718238349355,0.00858,68183.0,68182.0,1.69167682]
[1718238349559,0.00858,68183.0,68182.0,1.66367682]
[1718238349764,0.00858,68183.0,68182.0,1.67767682]
[1718238349960,0.00858,68183.0,68182.0,1.69167682]
[1718238350762,0.00858,68183.0,68182.0,1.66876087]
[1718238351161,0.00858,68183.0,68182.0,1.69167694]
[1718238352155,0.00858,68183.0,68182.0,1.87767206]
[1718238352362,0.00858,68183.0,68182.0,2.18553363]
[1718238352565,0.00858,68183.0,68182.0,2.05420446]
[1718238353157,0.00858,68183.0,68182.0,2.15417338]
[1718238353469,0.00858,68183.0,68182.0,2.03653772]
[1718238353684,0.00858,68183.0,68182.0,1.78475395]
[1718238353897,0.00858,68183.0,68182.0,1.89832689]
[1718238354136,0.00858,68183.0,68182.0,2.08885929]
[1718238354352,0.00858,68183.0,68182.0,2.10614295]
[1718238354560,0.00858,68183.0,68182.0,2.08314295]
[1718238354767,0.00858,68183.0,68182.0,2.07684658]
[1718238354985,0.00858,68183.0,68182.0,1.75874124]
[1718238355195,0.00858,68193.0,68192.0,0.6667]
[1718238355401,0.00858,68193.0,68192.0,1.7407069]
[1718238355644,0.00858,68193.0,68192.0,1.95635564]
[1718238356062,0.00858,68193.0,68192.0,1.8017742]
[1718238357065,0.00858,68193.0,68192.0,1.8157742]
[1718238357324,0.00858,68193.0,68192.0,1.81575644]
[1718238357453,0.00858,68193.0,68192.0,1.80175644]
[1718238357655,0.00858,68193.0,68192.0,1.80875644]
[1718238358057,0.00858,68193.0,68192.0,1.80175644]
[1718238358583,0.00858,68193.0,68192.0,1.94742521]
[1718238358757,0.00858,68193.0,68192.0,1.81575644]
[1718238359531,0.00858,68193.0,68192.0,1.82975644]
[1718238360049,0.00858,68193.0,68192.0,1.81575644]
[1718238360255,0.00858,68193.0,68192.0,1.82975644]
[1718238363162,0.00858,68193.0,68192.0,1.84767146]
[1718238363594,0.00858,68193.0,68192.0,1.54358789]
[1718238363963,0.00858,68193.0,68192.0,1.38906368]
[1718238364225,0.00858,68193.0,68192.0,1.45926368]
[1718238364449,0.00858,68193.0,68192.0,1.59099492]
[1718238364887,0.00858,68193.0,68192.0,2.06169492]
[1718238365093,0.00858,68193.0,68192.0,1.92996368]
[1718238365476,0.00858,68193.0,68192.0,1.82996368]
[1718238365881,0.00858,68193.0,68192.0,1.92996368]
[1718238366321,0.00858,68193.0,68192.0,1.62588789]
[1718238366542,0.00858,68193.0,68192.0,1.92997653]
[1718238367390,0.00858,68193.0,68192.0,1.82997653]
[1718238368965,0.00858,68193.0,68192.0,1.91206151]
[1718238369768,0.00858,68193.0,68192.0,1.81206151]
[1718238371595,0.00858,68193.0,68192.0,1.82944286]
[1718238372252,0.00858,68193.0,68192.0,1.92944286]
[1718238372762,0.00858,68193.0,68192.0,1.92624493]
[1718238375440,0.00858,68193.0,68192.0,1.81615502]
[1718238375648,0.00858,68193.0,68192.0,1.92603243]
[1718238375848,0.00858,68193.0,68192.0,1.94860845]
[1718238376162,0.00858,68193.0,68192.0,1.9715192]
[1718238377142,0.00858,68193.0,68192.0,1.9575192]
[1718238377348,0.00858,68193.0,68192.0,2.1041632]
[1718238377489,0.00858,68193.0,68192.0,2.1334932]
[1718238377697,0.00858,68193.0,68192.0,2.1474932]
[1718238377992,0.00858,68193.0,68192.0,2.0008492]
[1718238378225,0.00858,68193.0,68192.0,1.9728492]
[1718238378418,0.00858,68193.0,68192.0,1.9868492]
[1718238378992,0.00858,68193.0,68192.0,1.9728492]
[1718238379463,0.00858,68193.0,68192.0,1.9868492]
[1718238379996,0.00858,68193.0,68192.0,2.0008492]
[1718238380196,0.00858,68193.0,68192.0,1.9868492]
[1718238380642,0.00858,68193.0,68192.0,2.0008492]
[1718238381060,0.00858,68193.0,68192.0,1.9306492]
[1718238381473,0.00858,68193.0,68192.0,1.61423845]
[1718238381681,0.00858,68193.0,68192.0,1.76843845]
[1718238381888,0.00858,68193.0,68192.0,1.94823845]
[1718238382102,0.00858,68193.0,68192.0,1.8015271]
[1718238383146,0.00858,68193.0,68192.0,1.81926803]
[1718238383894,0.00858,68193.0,68192.0,1.41506803]
[1718238384093,0.00858,68193.0,68192.0,1.32506803]
[1718238384325,0.24848,68193.0,68192.0,1.40526803]
[1718238384522,0.24848,68193.0,68192.0,1.39526803]
[1718238384761,0.24848,68193.0,68192.0,1.38126803]
[1718238384966,0.24848,68193.0,68192.0,1.32365828]
[1718238385182,0.24848,68193.0,68192.0,1.35165828]
[1718238385537,0.24848,68193.0,68192.0,1.46766395]
[1718238385766,0.24848,68193.0,68192.0,1.45366395]
[1718238386420,0.24848,68193.0,68192.0,1.43966395]
[1718238386746,0.24848,68193.0,68192.0,1.34765828]
[1718238386945,0.24848,68193.0,68192.0,1.39678468]
[1718238387058,0.24848,68193.0,68192.0,1.38878468]
[1718238387261,0.24848,68193.0,68192.0,1.38504375]
[1718238387496,0.24848,68193.0,68192.0,1.47282645]
[1718238387688,0.24848,68193.0,68192.0,1.39262645]
[1718238387890,0.24848,68193.0,68192.0,1.46282645]
[1718238388544,0.24848,68193.0,68192.0,1.46236172]
[1718238388870,0.24848,68193.0,68192.0,1.45041189]
[1718238389090,0.24848,68193.0,68192.0,1.3845624]
[1718238389315,0.24848,68193.0,68192.0,1.45041289]
[1718238390158,0.24848,68193.0,68192.0,1.3845624]
[1718238390364,0.00858,68193.0,68192.0,1.45041357]
[1718238390767,0.00858,68193.0,68192.0,1.3845624]
[1718238390987,0.00858,68193.0,68192.0,1.47236172]
[1718238391920,0.00858,68193.0,68192.0,1.49431155]
[1718238392629,0.00858,68193.0,68192.0,1.3845624]
[1718238393219,0.00858,68193.0,68192.0,1.3645624]
[1718238393426,0.00858,68193.0,68192.0,1.3785624]
[1718238393628,0.00858,68193.0,68192.0,1.3855624]
[1718238394063,0.00858,68193.0,68192.0,1.3785624]
[1718238394279,0.00858,68193.0,68192.0,1.3875624]
[1718238398514,0.00858,68193.0,68192.0,1.38757315]
[1718238399611,0.00858,68193.0,68192.0,1.40157291]
[1718238399817,0.00858,68193.0,68192.0,1.4191132]
[1718238400019,0.00858,68193.0,68192.0,1.5691132]
[1718238400428,0.00858,68193.0,68192.0,1.4691132]
[1718238403214,0.00858,68193.0,68192.0,1.5691132]
[1718238403629,0.00858,68193.0,68192.0,1.56567971]
[1718238403904,0.00858,68193.0,68192.0,1.16158056]
[1718238404117,0.00858,68193.0,68192.0,1.46567674]
[1718238404321,0.00858,68193.0,68192.0,1.56567674]
[1718238404575,0.00858,68193.0,68192.0,1.57447588]
[1718238404802,0.00858,68193.0,68192.0,1.62447588]
[1718238405009,0.00858,68193.0,68192.0,2.01622074]
[1718238405222,0.00858,68193.0,68192.0,1.86957674]
[1718238405432,0.00858,68193.0,68192.0,1.86057674]
[1718238405636,0.00858,68193.0,68192.0,1.87457674]
[1718238405842,0.00858,68193.0,68192.0,1.99322074]
[1718238406052,0.00858,68193.0,68192.0,2.03013234]
[1718238406459,0.00858,68193.0,68192.0,2.01613234]
[1718238406661,0.00858,68193.0,68192.0,1.86057674]
[1718238406995,0.00858,68193.0,68192.0,1.84657674]
[1718238407322,0.00858,68193.0,68192.0,1.86057674]
[1718238410611,0.00858,68193.0,68192.0,1.84303645]
[1718238410883,0.00858,68193.0,68192.0,1.87236645]
[1718238411335,0.00858,68193.0,68192.0,2.04192172]
[1718238411565,0.00858,68193.0,68192.0,2.02792172]
[1718238411787,0.00858,68193.0,68192.0,2.04192172]
[1718238412004,0.00858,68193.0,68192.0,2.23644729]
[1718238412423,0.00858,68193.0,68192.0,2.22244729]
[1718238413116,0.00858,68193.0,68192.0,2.23644729]
[1718238413363,0.00858,68193.0,68192.0,2.04584502]
[1718238413599,0.00858,68193.0,68192.0,1.94878978]
[1718238413812,0.00099118,68193.0,68192.0,2.0485178]
[1718238414014,0.00099118,68193.0,68192.0,2.0205178]
[1718238414220,0.00099118,68193.0,68192.0,2.0345178]
[1718238414872,0.00099118,68193.0,68192.0,2.04731607]
[1718238415085,0.00099118,68193.0,68192.0,2.06131607]
[1718238415504,1e-08,68193.0,68192.0,2.06131607]
[1718238415931,1e-08,68193.0,68192.0,2.07531607]
[1718238416373,1e-08,68193.0,68192.0,2.06131607]
[1718238416583,1e-08,68193.0,68192.0,2.07531607]
[1718238416793,1e-08,68193.0,68192.0,2.06131607]
[1718238417245,1e-08,68193.0,68192.0,1.91467207]
[1718238417449,1e-08,68193.0,68192.0,2.09501511]
[1718238417596,1e-08,68193.0,68192.0,2.10901511]
[1718238417781,1e-08,68193.0,68192.0,2.12301511]
[1718238418189,1e-08,68193.0,68192.0,2.10901511]
[1718238418793,0.00858,68200.0,68192.0,2.10901511]
[1718238418794,0.00858,68200.0,68199.0,1.793929]
[1718238419011,0.00857,68210.0,68209.0,1.1645]
[1718238419220,0.00857,68210.0,68209.0,1.84424413]
[1718238419432,0.00857,68210.0,68209.0,1.82904413]
[1718238419641,0.00857,68210.0,68209.0,1.93869549]
[1718238419856,0.00857,68210.0,68209.0,2.03869549]
[1718238420034,0.00857,68210.0,68209.0,2.17810431]
[1718238421087,0.00857,68210.0,68209.0,2.06845295]
[1718238421332,0.00857,68210.0,68209.0,2.19209725]
[1718238421540,0.00857,68210.0,68209.0,2.09145295]
[1718238421797,0.00857,68210.0,68209.0,2.21305448]
[1718238422463,0.00857,68210.0,68209.0,2.17168648]
[1718238422695,0.00857,68210.0,68209.0,2.28129243]
[1718238422910,0.24257,68210.0,68209.0,2.16109243]
[1718238423125,0.24257,68210.0,68209.0,2.20937382]
[1718238423617,0.24257,68210.0,68209.0,2.10519767]
[1718238423898,0.24257,68210.0,68209.0,2.22680563]
[1718238424144,0.24257,68210.0,68209.0,2.03939027]
[1718238424324,0.24257,68210.0,68209.0,2.21462589]
[1718238424587,0.24257,68210.0,68209.0,2.22462589]
[1718238425504,0.24257,68210.0,68209.0,2.13694628]
[1718238425728,0.24257,68210.0,68209.0,2.1195209]
[1718238427950,0.24257,68210.0,68209.0,2.13712351]
[1718238428377,0.24257,68210.0,68209.0,2.15464159]
[1718238428584,0.24257,68210.0,68209.0,2.15464205]
[1718238428836,0.24257,68210.0,68209.0,1.61278363]
[1718238429061,0.24257,68210.0,68209.0,1.54258363]
[1718238429277,0.24257,68210.0,68209.0,1.63037736]
[1718238429527,0.24257,68210.0,68209.0,1.51522762]
[1718238430443,0.24257,68210.0,68209.0,1.46262135]
[1718238430672,0.24257,68210.0,68209.0,1.44949268]
[1718238431181,0.24257,68210.0,68209.0,1.00858493]
[1718238431417,0.24257,68210.0,68209.0,0.774033]
[1718238431629,0.24257,68210.0,68209.0,0.2876]
[1718238431837,0.24257,68210.0,68209.0,0.273]
[1718238432279,0.24257,68210.0,68209.0,0.173]
[1718238433421,0.24257,68210.0,68209.0,0.164]
[1718238433636,0.24257,68210.0,68209.0,0.15]
[1718238433845,0.24257,68210.0,68209.0,0.151]
[1718238434066,0.24257,68210.0,68209.0,0.163]
[1718238434281,0.24257,68210.0,68209.0,0.15]
[1718238434700,0.24257,68210.0,68209.0,0.151]
[1718238436321,0.24257,68210.0,68209.0,0.101]
[1718238436978,0.24257,68210.0,68209.0,0.151]
[1718238437180,0.24257,68210.0,68209.0,0.101]
[1718238439432,0.24257,68210.0,68209.0,0.051]
[1718238439732,0.24257,68210.0,68209.0,0.001]
[1718238441746,0.274704,68210.0,68209.0,0.001]
[1718238441919,0.274704,68210.0,68207.0,0.05]
[1718238441920,0.040704,68210.0,68204.0,0.05]
[1718238442077,0.0702,68205.0,68204.0,0.05]
[1718238442518,0.1496,68205.0,68204.0,0.05]
[1718238442715,0.3119,68205.0,68204.0,0.05]
[1718238443147,0.2417,68204.0,68199.0,0.05]
[1718238443300,0.3119,68200.0,68199.0,0.17215996]
[1718238444652,0.3119,68200.0,68199.0,0.17315996]
[1718238444875,0.3119,68200.0,68199.0,0.12315996]
[1718238445081,0.3119,68200.0,68199.0,0.07315996]
[1718238452557,0.34309,68200.0,68199.0,0.07315996]
[1718238453508,0.34309,68200.0,68199.0,0.07410596]
[1718238453657,0.3119,68200.0,68199.0,0.07410596]
[1718238454596,0.3119,68200.0,68199.0,0.001946]
[1718238455984,0.55621993,68200.0,68199.0,0.001946]
[1718238456612,0.94176929,68200.0,68199.0,0.001946]
[1718238457041,0.96476929,68200.0,68199.0,0.001946]
[1718238457266,0.9903913,68200.0,68199.0,0.002946]
[1718238457479,1.08865434,68200.0,68199.0,0.001946]
[1718238457714,0.84695434,68200.0,68192.0,0.000946]
[1718238457944,0.0702,68193.0,68177.0,0.43295979]
[1718238458147,0.0702,68184.0,68182.0,0.000946]
[1718238458358,0.1,68194.0,68182.0,0.000946]
[1718238458359,0.42471993,68183.0,68182.0,0.000946]
[1718238458572,0.57412585,68183.0,68182.0,0.000946]
[1718238458779,0.67412585,68183.0,68182.0,0.000946]
[1718238460280,0.67412585,68183.0,68182.0,0.001946]
[1718238460470,0.68812585,68183.0,68182.0,0.001946]
[1718238460683,0.68812585,68183.0,68182.0,0.000946]
[1718238460890,0.67512585,68183.0,68182.0,0.001946]
[1718238461559,0.68212585,68183.0,68182.0,0.001946]
[1718238465386,0.42513393,68183.0,68182.0,0.001946]
[1718238465601,0.11493393,68183.0,68182.0,0.001946]
[1718238465784,0.11493393,68183.0,68182.0,0.051946]
[1718238465997,0.11493393,68183.0,68182.0,0.151946]
[1718238466192,0.008,68183.0,68182.0,0.151946]
[1718238466452,0.008,68183.0,68182.0,0.2363566]
[1718238466982,0.001,68183.0,68182.0,0.2563566]
[1718238467184,0.015,68183.0,68182.0,0.4947566]
[1718238467300,0.015,68183.0,68182.0,0.4937566]
[1718238467301,0.014,68183.0,68182.0,0.4937566]
[1718238467710,0.001,68183.0,68182.0,0.4947566]
[1718238467920,0.014,68183.0,68182.0,0.4937566]
[1718238468139,0.014,68183.0,68182.0,0.64807653]
[1718238468370,0.015,68183.0,68182.0,0.63907653]
[1718238469695,0.015,68183.0,68182.0,0.63807653]
[1718238469872,0.014,68183.0,68182.0,0.63807653]
[1718238470072,0.014,68183.0,68182.0,0.65207653]
[1718238470274,0.014,68183.0,68182.0,0.66207653]
[1718238470503,0.53295979,68205.0,68201.0,0.05]
[1718238470712,0.1216678,68204.0,68203.0,0.07215996]
[1718238470917,0.2216678,68204.0,68203.0,0.07215996]
[1718238471650,0.2216678,68204.0,68201.0,0.051]
[1718238471847,0.1216678,68203.0,68201.0,0.051]
[1718238473092,0.1216678,68202.0,68201.0,0.05]
[1718238473300,0.1216678,68203.0,68201.0,0.05]
[1718238473496,0.114,68204.0,68196.0,0.05]
[1718238473497,0.18339657,68202.0,68196.0,0.05]
[1718238473735,0.1216678,68201.0,68196.0,0.05]
[1718238473936,0.26598773,68201.0,68194.0,0.05]
[1718238474136,0.0761,68198.0,68194.0,0.05]
[1718238474344,0.19509945,68197.0,68194.0,0.05]
[1718238474554,0.1216678,68196.0,68194.0,0.05]
[1718238476335,0.1216678,68195.0,68194.0,0.05]
[1718238476490,0.1216678,68197.0,68194.0,0.05]
[1718238476852,0.1216678,68196.0,68194.0,0.05]
[1718238477206,0.1356678,68196.0,68194.0,0.051]
[1718238477421,0.1216678,68195.0,68194.0,0.051]
[1718238478066,0.1216678,68195.0,68194.0,0.052]
[1718238478266,0.1216678,68195.0,68194.0,0.051]
[1718238478644,0.1226678,68195.0,68194.0,0.052]
[1718238478858,0.12926849,68195.0,68194.0,0.052]
[1718238479439,0.12926849,68195.0,68194.0,0.051]
[1718238479612,0.14326849,68195.0,68194.0,0.052]
[1718238479786,0.19685534,68195.0,68194.0,0.052]
[1718238480616,0.14326849,68195.0,68194.0,0.102]
[1718238481358,0.14328003,68195.0,68194.0,0.102]
[1718238481786,0.02160069,68195.0,68194.0,0.102]
[1718238483714,0.02160069,68195.0,68194.0,0.002]
[1718238483924,0.28760059,68195.0,68194.0,0.002]
[1718238484147,0.51672065,68195.0,68194.0,0.002]
[1718238485292,0.71932065,68195.0,68194.0,0.002]
[1718238485557,1.02357268,68195.0,68194.0,0.002]
[1718238485770,1.04114297,68195.0,68194.0,0.002]
[1718238486227,1.02714297,68195.0,68194.0,0.001]
[1718238486448,0.78684297,68195.0,68182.0,0.000946]
[1718238486664,0.78684297,68195.0,68194.0,0.001]
[1718238486665,0.47299104,68195.0,68194.0,0.001]
[1718238486842,1.22987889,68195.0,68194.0,0.002]
[1718238487099,1.13545883,68195.0,68183.0,0.000946]
[1718238487321,0.54896792,68194.0,68183.0,0.000946]
[1718238487533,0.58196792,68193.0,68183.0,0.000946]
[1718238487783,0.53047069,68192.0,68183.0,0.000946]
[1718238487960,0.12170488,68191.0,68186.0,0.07215996]
[1718238488231,0.12170488,68191.0,68183.0,0.050946]
[1718238488232,0.1,68190.0,68183.0,0.050946]
[1718238488540,0.12170488,68189.0,68183.0,0.050946]
[1718238488707,0.12963072,68189.0,68183.0,0.050946]
[1718238488967,0.12170488,68188.0,68183.0,0.050946]
[1718238489551,0.12963072,68187.0,68183.0,0.050946]
[1718238489798,0.12170488,68186.0,68183.0,0.051946]
[1718238490259,0.12170488,68186.0,68183.0,0.050946]
[1718238490460,0.12963072,68185.0,68183.0,0.051946]
[1718238490636,0.12170488,68184.0,68183.0,0.050946]
[1718238491118,0.12963429,68184.0,68183.0,0.051946]
[1718238491302,0.12963429,68184.0,68183.0,0.050946]
[1718238491736,0.12963429,68184.0,68183.0,0.051946]
[1718238493251,0.14363429,68184.0,68183.0,0.051946]
[1718238493689,0.14363429,68184.0,68183.0,0.050946]
[1718238493910,0.14363429,68184.0,68183.0,0.051946]
[1718238494039,0.15463429,68184.0,68183.0,0.051946]
[1718238494497,0.03292941,68184.0,68183.0,0.051946]
[1718238494752,0.15463267,68184.0,68183.0,0.051946]
[1718238494959,0.14670326,68184.0,68183.0,0.051946]
[1718238495180,0.15457829,68184.0,68183.0,0.051946]
[1718238503368,0.17003612,68184.0,68183.0,0.001946]
[1718238503906,0.73065605,68184.0,68183.0,0.001946]
[1718238504062,1.03495449,68184.0,68183.0,0.001946]
[1718238507347,1.05251946,68184.0,68183.0,0.001946]
[1718238507556,1.03495449,68184.0,68183.0,0.001946]
[1718238508207,1.05251947,68184.0,68183.0,0.001946]
[1718238508443,1.03495449,68184.0,68183.0,0.001946]
[1718238509078,1.15795449,68184.0,68183.0,0.001946]
[1718238510027,1.14395449,68184.0,68183.0,0.001946]
[1718238510236,1.17668913,68184.0,68183.0,0.000946]
[1718238510418,1.13295449,68184.0,68183.0,0.000946]
[1718238510616,1.1906914,68184.0,68183.0,0.000946]
[1718238511528,1.2006914,68184.0,68183.0,0.000946]
[1718238513283,1.15695449,68184.0,68183.0,0.000946]
[1718238515275,1.14149666,68184.0,68183.0,0.000946]
[1718238515494,0.45787673,68184.0,68183.0,0.000946]
[1718238515724,0.15357829,68184.0,68183.0,0.000946]
[1718238516981,0.03187503,68184.0,68183.0,0.000946]
[1718238517613,0.024,68184.0,68183.0,0.000946]
[1718238518692,0.024,68184.0,68183.0,0.050946]
[1718238518901,0.024,68184.0,68183.0,0.150946]
[1718238518902,0.02486,68184.0,68183.0,0.150946]
[1718238520491,0.02486,68184.0,68183.0,0.050946]
[1718238520671,0.04259103,68184.0,68183.0,0.050946]
[1718238523022,0.04259103,68184.0,68183.0,0.000946]
[1718238524027,0.1643003,68184.0,68183.0,0.000946]
[1718238524259,0.18970884,68184.0,68183.0,0.000946]
[1718238527974,0.17327881,68184.0,68183.0,0.000946]
[1718238529246,0.17327881,68184.0,68183.0,0.050946]
[1718238529450,0.17327881,68184.0,68183.0,0.150946]
[1718238530712,0.17327881,68184.0,68183.0,0.050946]
[1718238531363,0.13154778,68184.0,68183.0,0.050946]
[1718238531746,0.15454778,68184.0,68183.0,0.050946]
[1718238532870,0.15454778,68184.0,68183.0,0.389346]
[1718238533197,0.22474778,68184.0,68183.0,0.289346]
[1718238536639,0.24261683,68184.0,68183.0,0.289346]
[1718238540557,0.22474778,68184.0,68183.0,0.289346]
[1718238540754,0.22474778,68184.0,68183.0,0.389346]
[1718238540963,0.22474778,68184.0,68183.0,0.289346]
[1718238542060,0.22474778,68184.0,68183.0,0.389346]
[1718238542267,0.10303851,68184.0,68183.0,0.389346]
[1718238542469,0.21983171,68184.0,68183.0,0.289346]
[1718238542673,0.10303851,68184.0,68183.0,0.289346]
[1718238542878,0.21983171,68184.0,68183.0,0.289346]
[1718238543982,0.10303851,68184.0,68183.0,0.389346]
[1718238544182,0.21976916,68184.0,68183.0,0.289346]
[1718238544394,0.21976916,68184.0,68183.0,0.389346]
[1718238544766,0.21976916,68184.0,68183.0,0.289346]
[1718238546049,0.21976916,68184.0,68183.0,0.389346]
[1718238547800,0.21976916,68184.0,68183.0,0.289346]
[1718238550624,0.21976916,68184.0,68183.0,0.239346]
[1718238551317,0.10303851,68184.0,68183.0,0.239346]
[1718238551522,0.21933892,68184.0,68183.0,0.239346]
[1718238551937,0.21928397,68184.0,68183.0,0.126446]
[1718238553521,0.2193308,68184.0,68183.0,0.126446]
[1718238556231,0.2193308,68184.0,68183.0,0.076446]
[1718238559461,0.52358146,68184.0,68183.0,0.076446]
[1718238564838,0.52358146,68184.0,68183.0,0.176446]
[1718238564984,0.52358146,68184.0,68183.0,0.076446]
[1718238567597,0.52014792,68184.0,68183.0,0.076446]
[1718238568732,0.52014787,68184.0,68183.0,0.076446]
[1718238570454,0.52010207,68184.0,68183.0,0.076446]
[1718238571743,0.5201023,68184.0,68183.0,0.076446]
[1718238573081,0.5201023,68184.0,68183.0,0.000946]
[1718238574098,0.520104,68184.0,68183.0,0.000946]
[1718238577853,0.52011853,68184.0,68183.0,0.000946]
[1718238580758,0.44991853,68184.0,68183.0,0.220946]
[1718238580976,0.13668748,68184.0,68183.0,0.72453113]
[1718238581178,0.02386,68184.0,68183.0,0.78857998]
[1718238581395,0.02386,68184.0,68183.0,0.83255989]
[1718238581613,0.00086,68202.0,68201.0,0.21]
[1718238581817,0.00086,68202.0,68201.0,0.5224]
[1718238582248,0.00086,68202.0,68201.0,0.15]
[1718238582505,0.00086,68202.0,68193.0,0.08596375]
[1718238582506,0.16706009,68202.0,68193.0,0.1]
[1718238582726,0.00086,68202.0,68193.0,0.05]
[1718238582940,0.0702,68194.0,68193.0,0.05]
[1718238583607,0.16541359,68194.0,68191.0,0.05]
[1718238583778,0.07739621,68194.0,68193.0,0.05]
[1718238584057,0.00719621,68194.0,68193.0,0.05]
[1718238584496,0.0702,68196.0,68194.0,0.05]
[1718238584910,0.00719621,68195.0,68194.0,0.05]
[1718238585122,0.0702,68196.0,68194.0,0.05]
[1718238585559,0.00719621,68195.0,68194.0,0.05]
[1718238585975,0.00719621,68195.0,68194.0,0.051]
[1718238586182,0.00719621,68195.0,68194.0,0.101]
[1718238587114,0.00719621,68195.0,68194.0,0.051]
[1718238589062,0.00719621,68195.0,68194.0,0.05]
[1718238589267,0.01619621,68195.0,68194.0,0.051]
[1718238591036,0.01619621,68195.0,68194.0,0.101]
[1718238591211,0.01619621,68195.0,68194.0,0.051]
[1718238591417,0.01619621,68195.0,68194.0,0.101]
[1718238591867,0.01619621,68195.0,68194.0,0.201]
[1718238592126,0.01619621,68195.0,68194.0,0.101]
[1718238595355,0.01619621,68195.0,68194.0,0.201]
[1718238596427,0.01619621,68195.0,68194.0,0.101]
[1718238596864,0.009,68195.0,68194.0,0.101]
[1718238597072,0.009,68195.0,68194.0,0.201]
[1718238597297,0.009,68195.0,68194.0,0.101]
[1718238597469,0.009,68195.0,68194.0,0.201]
[1718238598256,0.009,68195.0,68194.0,0.101]
[1718238599111,0.009,68195.0,68194.0,0.051]
[1718238599881,0.009,68195.0,68194.0,0.101]
[1718238600305,0.009,68195.0,68194.0,0.1211]
[1718238600547,0.02672809,68195.0,68194.0,0.3523]
[1718238600766,0.009,68195.0,68194.0,0.4322]
[1718238601172,0.009,68195.0,68194.0,0.3322]